bitfinex/quotes_ETHUSD_20241104
["timestamp","ask_amount","ask_price","bid_price","bid_amount"]
[1730741466743,4.72619,2428.9,2428.8,0.69452345]
[1730741466937,0.6091,2428.9,2428.8,0.69452345]
[1730741467437,4.72619,2428.9,2428.8,0.69452345]
[1730741467948,0.55,2428.9,2428.8,0.69452345]
[1730741468154,0.55,2429.1,2428.8,0.69452345]
[1730741468348,4.66675,2429.1,2428.9,0.69452345]
[1730741468560,4.66675,2429.1,2429.0,0.26711907]
[1730741468884,0.0591,2428.8,2428.4,7.88842]
[1730741469052,0.55,2428.9,2428.5,4.89543875]
[1730741469247,0.55,2428.9,2428.6,0.69550126]
[1730741469585,0.55,2428.9,2428.7,0.69550126]
[1730741469793,0.55,2428.9,2428.8,0.26749514]
[1730741469951,0.55,2428.9,2428.8,0.69543892]
[1730741470146,0.55,2428.9,2428.8,0.26749514]
[1730741472790,0.55,2428.9,2428.4,7.88832]
[1730741472999,0.55,2428.9,2428.5,1.53359431]
[1730741473160,0.55,2428.9,2428.6,0.69509449]
[1730741473491,0.55,2428.9,2428.7,0.69506239]
[1730741473662,0.55,2428.9,2428.8,0.26734412]
[1730741476697,0.55,2428.9,2428.8,0.2676144]
[1730741478276,0.55,2428.9,2428.5,4.95622982]
[1730741478478,0.55,2428.9,2428.6,0.69621676]
[1730741478676,0.55,2428.9,2428.7,0.26777033]
[1730741478864,0.55,2428.9,2428.5,4.95623982]
[1730741479071,0.55,2428.9,2428.6,0.26771179]
[1730741479270,0.55,2428.9,2428.7,0.26771179]
[1730741479582,0.55,2428.9,2428.5,4.95623982]
[1730741479583,0.55,2428.9,2428.5,0.83849982]
[1730741479906,0.55,2428.9,2428.6,0.26767564]
[1730741480067,0.55,2428.9,2428.7,0.26767564]
[1730741480267,0.55,2428.9,2428.5,4.95624982]
[1730741480569,0.55,2428.9,2428.6,0.26769192]
[1730741480799,0.55,2428.9,2428.7,0.26769192]
[1730741481011,0.55,2428.9,2428.5,0.83849982]
[1730741481299,0.55,2428.9,2428.6,0.26771498]
[1730741481504,0.55,2428.9,2428.7,0.26771498]
[1730741481705,0.55,2428.9,2428.5,4.95618982]
[1730741481911,0.55,2428.9,2428.6,0.26772508]
[1730741482075,0.55,2428.9,2428.7,0.26772508]
[1730741482282,0.55,2428.9,2428.5,4.95618982]
[1730741482480,0.55,2428.9,2428.6,0.26775108]
[1730741482696,0.55,2428.9,2428.7,0.26775108]
[1730741483036,0.55,2428.9,2428.5,4.95618982]
[1730741483189,0.55,2428.9,2428.6,0.26767458]
[1730741483388,0.55,2428.9,2428.7,0.26767458]
[1730741483582,0.55,2428.9,2428.5,4.95618982]
[1730741483821,0.55,2428.9,2428.6,0.26768591]
[1730741484121,0.55,2428.9,2428.7,0.26768591]
[1730741484318,0.55,2428.9,2428.5,4.95625982]
[1730741484518,0.55,2428.9,2428.6,0.26770906]
[1730741484688,0.55,2428.9,2428.5,4.95625982]
[1730741484689,0.55,2428.9,2428.7,0.26770906]
[1730741485014,0.55,2428.9,2428.5,4.95625982]
[1730741485231,0.55,2428.9,2428.6,0.26765802]
[1730741485381,0.55,2428.9,2428.7,0.26765802]
[1730741485584,0.55,2428.9,2428.5,4.95625982]
[1730741485784,0.55,2428.9,2428.6,0.26766798]
[1730741486031,0.55,2428.9,2428.7,0.26766798]
[1730741486182,0.55,2428.9,2428.6,0.08233812]
[1730741486740,0.55,2428.9,2428.5,4.95623982]
[1730741486885,0.55,2428.9,2428.6,0.84034496]
[1730741487084,0.55,2428.9,2428.7,0.2676832]
[1730741487281,0.55,2428.9,2428.6,0.57267398]
[1730741488405,0.55,2428.9,2428.7,0.08233849]
[1730741488804,0.55,2428.9,2428.4,4.8884]
[1730741489007,0.55,2428.9,2428.5,0.26756762]
[1730741489311,0.55,2428.9,2428.6,0.26756762]
[1730741489628,0.55,2428.9,2428.5,4.11774]
[1730741489629,0.55,2428.9,2428.7,0.08233822]
[1730741490705,0.55,2428.9,2428.6,0.08233834]
[1730741491523,0.55,2428.9,2428.6,4.19991834]
[1730741491836,2.15956103,2429.1,2428.8,4.11713]
[1730741492001,2.65057323,2429.3,2428.9,8.23401]
[1730741492002,2.15956103,2429.2,2428.9,8.23401]
[1730741492203,2.21866103,2429.3,2429.0,0.08232798]
[1730741492509,2.15956103,2429.3,2429.0,0.08232798]
[1730741492898,2.15956103,2429.3,2429.0,4.61904578]
[1730741493102,2.15956103,2429.3,2429.1,0.7758]
[1730741493401,2.15956103,2429.2,2429.1,0.7758]
[1730741493742,2.59647323,2429.4,2429.0,0.4199278]
[1730741493743,2.15956103,2429.3,2429.0,0.4199278]
[1730741493890,2.15956103,2429.3,2429.0,4.5367278]
[1730741494090,0.005,2429.4,2428.6,5.08020662]
[1730741494091,2.16456103,2429.4,2429.2,0.8149]
[1730741494294,0.005,2429.4,2429.2,0.8149]
[1730741494519,0.005,2429.4,2429.3,0.08231869]
[1730741494720,0.005,2429.4,2429.2,0.8149]
[1730741495420,0.555,2429.4,2429.2,0.8149]
[1730741495932,0.555,2429.4,2429.1,0.53121278]
[1730741496301,0.555,2429.4,2429.2,0.54614928]
[1730741496493,0.555,2429.4,2429.1,0.53121278]
[1730741497421,0.55,2429.2,2428.8,0.755]
[1730741497945,0.55,2429.2,2428.9,4.11707]
[1730741498229,0.55,2429.2,2428.8,4.87225]
[1730741498388,0.005,2429.4,2429.2,0.8319]
[1730741499195,0.005,2429.4,2429.2,1.32676]
[1730741499691,0.005,2429.4,2429.3,0.08231519]
[1730741499920,0.005,2429.4,2429.2,5.44325]
[1730741500117,0.005,2429.4,2429.3,0.08231521]
[1730741500430,0.005,2429.4,2429.3,4.11641]
[1730741500645,0.005,2429.4,2429.3,5.072384]
[1730741501932,0.005,2429.4,2429.3,5.829684]
[1730741502956,0.005,2429.4,2429.3,6.09623231]
[1730741503304,0.005,2429.4,2429.3,13.52052945]
[1730741503506,0.005,2429.4,2429.3,9.53234364]
[1730741503707,0.005,2429.4,2429.3,9.10623231]
[1730741503945,0.005,2429.4,2429.3,9.09623231]
[1730741505267,0.0591655,2429.5,2429.4,7.11624]
[1730741505397,0.0591655,2429.5,2429.4,13.20090044]
[1730741505602,0.0591655,2429.5,2429.4,13.89291461]
[1730741506429,0.0591655,2429.5,2429.4,13.46718407]
[1730741506846,0.0591655,2429.5,2429.4,13.89265799]
[1730741507139,0.0591655,2429.5,2429.4,13.44718407]
[1730741507441,0.0591655,2429.5,2429.4,9.86222903]
[1730741509739,0.0591655,2429.5,2429.4,6.86222903]
[1730741510587,0.0591655,2429.5,2429.4,6.5959454]
[1730741511480,0.0591655,2429.5,2429.4,1.6820054]
[1730741511682,0.0591655,2429.5,2429.4,4.11624]
[1730741511984,0.0591655,2429.5,2429.4,4.19854484]
[1730741512349,0.0591655,2429.5,2429.4,4.11624]
[1730741515689,0.0591655,2429.5,2429.4,4.19854057]
[1730741516573,0.0591655,2429.5,2429.4,11.59509561]
[1730741516783,0.0591655,2429.5,2429.4,13.625731]
[1730741517005,0.0591655,2429.5,2429.4,13.89195525]
[1730741517526,0.0591655,2429.5,2429.4,10.29700021]
[1730741517678,0.0591655,2429.5,2429.4,7.03077596]
[1730741517878,0.0591655,2429.5,2429.4,5.19409179]
[1730741521624,0.0591655,2429.5,2429.4,5.71265597]
[1730741521836,0.0591655,2429.5,2429.4,5.63036053]
[1730741521990,0.0591655,2429.5,2429.4,5.63037779]
[1730741522191,0.0591655,2429.5,2429.4,5.19409179]
[1730741522515,0.0591655,2429.5,2429.4,6.64928101]
[1730741522690,0.0591655,2429.5,2429.4,6.22272737]
[1730741523027,0.0591655,2429.5,2429.4,6.64969091]
[1730741524032,0.0591655,2429.5,2429.4,6.74198622]
[1730741524193,0.0591655,2429.5,2429.4,6.65969091]
[1730741524970,0.0591655,2429.5,2429.4,11.00169091]
[1730741526139,0.0591655,2429.5,2429.4,10.30847558]
[1730741526354,0.0591655,2429.5,2429.4,11.00213129]
[1730741527537,0.0591655,2429.5,2429.4,17.58708633]
[1730741527930,0.0591655,2429.5,2429.4,13.24508633]
[1730741528153,0.0591655,2429.5,2429.4,6.65013129]
[1730741529270,0.0591655,2429.5,2429.4,10.31738225]
[1730741529452,0.0591655,2429.5,2429.4,10.23508633]
[1730741529652,0.0591655,2429.5,2429.4,10.23689378]
[1730741530171,0.0591655,2429.5,2429.4,10.24689378]
[1730741530775,0.0591655,2429.5,2429.4,13.24689378]
[1730741533060,0.0591655,2429.5,2429.4,12.55143062]
[1730741533259,0.0591655,2429.5,2429.4,13.24731329]
[1730741533785,0.0591655,2429.5,2429.4,13.69343355]
[1730741534166,0.0591655,2429.5,2429.4,13.24731329]
[1730741534781,0.0591655,2429.5,2429.4,13.23731329]
[1730741534982,0.0591655,2429.5,2429.4,6.65235825]
[1730741535979,0.0591655,2429.5,2429.4,5.84075825]
[1730741536986,0.0591655,2429.5,2429.4,4.89442521]
[1730741537196,0.0591655,2429.5,2429.4,4.4661844]
[1730741537380,0.0591655,2429.5,2429.4,4.89459008]
[1730741539357,0.0591655,2429.5,2429.4,4.81228754]
[1730741539665,0.0591655,2429.5,2429.4,4.89459532]
[1730741539879,0.0591655,2429.5,2429.4,5.79568385]
[1730741540691,0.0591655,2429.5,2429.4,10.10413111]
[1730741542259,0.0591655,2429.5,2429.4,10.55025137]
[1730741542684,0.0591655,2429.5,2429.4,10.10413111]
[1730741543291,0.0591655,2429.5,2429.4,10.55025137]
[1730741543655,0.0591655,2429.5,2429.4,13.55025137]
[1730741544093,0.0591655,2429.5,2429.4,6.51917607]
[1730741544294,0.0591655,2429.5,2429.4,5.01732853]
[1730741544478,0.0591655,2429.5,2429.4,5.7141982]
[1730741545182,0.0591655,2429.5,2429.4,5.79649922]
[1730741545380,0.0591655,2429.5,2429.4,5.7141982]
[1730741547772,0.0591655,2429.5,2429.4,5.01732853]
[1730741547989,0.0591655,2429.5,2429.4,5.71472503]
[1730741549202,0.0591655,2429.5,2429.4,4.8136365]
[1730741549500,0.1232655,2429.5,2429.4,4.8136365]
[1730741549694,0.1232655,2429.5,2429.4,4.46677538]
[1730741549902,0.1232655,2429.5,2429.4,4.89621865]
[1730741551262,0.1232655,2429.5,2429.4,4.19855129]
[1730741551494,0.1232655,2429.5,2429.4,4.8961205]
[1730741551685,0.1232655,2429.5,2429.4,4.46684181]
[1730741552389,0.1232655,2429.5,2429.4,5.32515699]
[1730741552771,0.1232655,2429.5,2429.4,5.75382446]
[1730741552981,0.1232655,2429.5,2429.4,5.32515699]
[1730741553900,0.1232655,2429.5,2429.4,5.75362004]
[1730741554080,0.0591655,2429.5,2429.4,5.32515699]
[1730741554274,0.0591655,2429.5,2429.4,5.75361681]
[1730741555799,0.0591655,2429.5,2429.4,5.75306616]
[1730741556167,0.0591655,2429.5,2429.4,5.67075487]
[1730741556704,0.0591655,2429.5,2429.4,4.81243969]
[1730741556918,0.1232655,2429.5,2429.4,4.38400379]
[1730741557201,0.1232655,2429.5,2429.4,4.46631527]
[1730741557409,0.1232655,2429.5,2429.4,0.26776379]
[1730741558305,0.1232655,2429.5,2429.3,4.11627]
[1730741558470,0.1232655,2429.5,2428.9,4.87197]
[1730741558663,0.1232655,2429.5,2429.3,4.11634]
[1730741558883,0.1232655,2429.5,2429.3,8.23266]
[1730741559080,0.1232655,2429.5,2429.1,4.11661]
[1730741559282,0.1232655,2429.5,2429.2,4.38375912]
[1730741559588,0.1232655,2429.5,2429.0,4.604047]
[1730741559782,0.1232655,2429.5,2429.2,4.11657]
[1730741560100,0.0641,2429.4,2429.1,8.23324]
[1730741560306,0.0641,2429.4,2429.2,4.38369936]
[1730741560471,0.0641,2429.4,2429.3,4.11641]
[1730741560686,0.0641,2429.4,2429.2,4.11655]
[1730741561409,0.0641,2429.4,2429.1,4.11674]
[1730741561609,0.0641,2429.4,2429.3,4.11641]
[1730741562326,0.55,2429.3,2429.1,4.11668]
[1730741562465,0.55,2429.3,2429.2,0.26715991]
[1730741562908,0.55,2429.3,2429.2,0.26720401]
[1730741563117,0.55,2429.3,2429.0,4.11675]
[1730741563286,0.55,2429.3,2429.1,4.38390284]
[1730741563472,0.55,2429.3,2429.1,4.11671]
[1730741563674,0.55,2429.3,2429.2,0.26721626]
[1730741564198,0.55,2429.3,2429.1,4.19903522]
[1730741564785,0.55,2429.3,2429.1,4.11671]
[1730741564986,0.55,2429.3,2429.2,0.26741599]
[1730741567016,0.6141,2429.3,2429.2,0.26741599]
[1730741571133,0.6141,2429.3,2429.1,0.08232589]
[1730741571324,0.6141,2429.3,2429.0,4.11679]
[1730741571525,0.6141,2429.3,2429.1,0.26759838]
[1730741571727,0.6141,2429.3,2429.0,4.11679]
[1730741572046,0.6141,2429.3,2429.1,0.26761407]
[1730741572209,0.6141,2429.3,2429.0,8.23362]
[1730741572535,0.6141,2429.3,2429.1,4.46676464]
[1730741572701,0.6141,2429.3,2429.1,4.19906595]
[1730741573100,0.6141,2429.3,2429.1,4.11674]
[1730741573849,0.6141,2429.3,2429.0,4.1169]
[1730741574057,0.6141,2429.3,2429.1,0.26767789]
[1730741574224,0.6141,2429.3,2429.0,4.1169]
[1730741574409,0.6141,2429.3,2429.1,0.26769294]
[1730741574607,0.6141,2429.3,2429.0,4.1169]
[1730741574808,0.6141,2429.3,2429.1,0.26770096]
[1730741575109,0.6141,2429.3,2429.0,4.1169]
[1730741575311,0.6141,2429.3,2429.1,0.26766034]
[1730741575515,0.6141,2429.3,2429.0,4.11683]
[1730741575722,0.6141,2429.3,2429.1,0.26761427]
[1730741575943,0.6141,2429.3,2429.0,4.11683]
[1730741576151,0.6141,2429.3,2429.1,0.26752909]
[1730741576305,0.6141,2429.3,2428.9,4.117]
[1730741576506,0.55,2429.3,2428.8,4.11724]
[1730741576730,0.55,2429.2,2429.0,0.26752908]
[1730741576937,0.55,2429.2,2428.8,4.11724]
[1730741577154,0.55,2429.2,2428.9,0.26760132]
[1730741577155,0.0641,2429.1,2428.9,0.26760132]
[1730741577324,0.0641,2429.1,2428.7,8.23469]
[1730741577526,0.0641,2429.1,2428.8,4.3847647]
[1730741577745,0.0641,2429.1,2428.9,0.2676047]
[1730741577918,0.0641,2429.1,2428.8,4.11716]
[1730741578119,0.0641,2429.1,2428.7,4.5456188]
[1730741578353,0.0641,2429.1,2428.8,0.26760113]
[1730741578560,0.0641,2429.1,2428.7,4.1174]
[1730741578762,0.0641,2429.1,2428.8,0.26758775]
[1730741578936,0.0641,2429.1,2428.9,0.26758775]
[1730741579136,0.0641,2429.1,2428.8,4.11724]
[1730741579336,0.0641,2429.1,2428.7,8.23468]
[1730741579665,4.18086,2429.1,2428.8,0.26756608]
[1730741579856,4.18086,2429.1,2428.7,4.11733]
[1730741580045,4.66716,2428.9,2428.8,0.26756324]
[1730741580370,0.55,2428.6,2428.4,0.42828441]
[1730741580522,0.55,2428.6,2428.5,0.26767798]
[1730741580720,4.6676,2428.6,2428.2,4.11818]
[1730741580943,0.0641,2428.4,2428.3,0.26772882]
[1730741581145,0.0641,2428.4,2428.1,4.11841]
[1730741581337,0.0641,2428.4,2428.2,0.26768552]
[1730741581531,4.18206,2428.4,2428.0,4.54654079]
[1730741581749,0.0641,2428.4,2428.1,4.38582091]
[1730741581958,0.0641,2428.4,2428.2,0.26747091]
[1730741582263,4.18205,2428.4,2428.0,4.11861]
[1730741582420,0.0641,2428.4,2428.1,0.26733938]
[1730741582764,0.0641,2428.4,2428.1,4.11833]
[1730741583667,0.55,2428.3,2428.0,4.11859]
[1730741583840,4.11834,2428.2,2427.8,4.11885]
[1730741584167,0.0641,2428.1,2427.9,0.26728073]
[1730741584742,0.0641,2428.1,2427.7,4.11904]
[1730741584937,0.55,2428.0,2427.4,0.7589]
[1730741585176,0.55,2428.0,2427.7,4.11912]
[1730741585567,0.55,2428.0,2427.7,5.02532369]
[1730741585757,0.0641,2428.3,2427.9,4.11874]
[1730741586079,0.0641,2428.3,2427.9,8.23739]
[1730741586080,0.55,2428.2,2427.9,8.23739]
[1730741586374,0.55,2428.2,2427.9,4.11865]
[1730741586597,0.55,2428.2,2427.8,4.11893]
[1730741586754,4.66872,2428.0,2427.5,4.89235]
[1730741586945,0.55,2427.8,2427.4,4.11952]
[1730741587142,0.55,2427.8,2427.5,4.3864539]
[1730741587481,0.55,2427.8,2427.5,4.1194]
[1730741587784,0.55,2427.8,2427.4,4.11952]
[1730741588180,0.55,2427.8,2427.5,4.11941]
[1730741588379,0.55,2427.8,2427.6,4.11929]
[1730741588591,0.55,2427.8,2427.5,4.11941]
[1730741588888,0.55,2427.8,2427.5,8.23875]
[1730741589071,0.55,2427.8,2427.5,4.11934]
[1730741589384,0.55,2427.8,2426.8,0.8038]
[1730741589385,0.55,2427.4,2426.8,0.8038]
[1730741589570,0.55,2427.4,2427.0,4.12023]
[1730741589571,0.0641,2427.3,2427.0,4.12023]
[1730741589879,4.66999,2427.2,2426.8,4.12055]
[1730741590245,8.7901,2427.2,2426.7,4.1208]
[1730741590441,4.18425,2427.1,2426.7,4.1208]
[1730741590763,0.55,2427.0,2426.7,4.12069]
[1730741591080,0.55,2427.0,2426.5,4.12103]
[1730741591381,0.0641,2427.1,2426.5,4.12103]
[1730741591382,0.55,2426.8,2426.5,4.12103]
[1730741591583,0.55,2426.8,2426.6,4.12098]
[1730741592106,0.55,2426.8,2426.6,8.24189]
[1730741592303,0.55,2426.8,2426.6,4.12091]
[1730741592517,0.55,2426.8,2426.7,4.12082]
[1730741592677,0.6141,2427.2,2426.9,4.12036]
[1730741592858,0.6141,2427.2,2427.1,4.12014]
[1730741593059,4.11922,2427.7,2427.2,4.11988]
[1730741593060,0.0641,2427.5,2427.2,4.11988]
[1730741593386,0.0641,2427.5,2427.3,4.11977]
[1730741594655,0.55,2427.4,2427.3,4.11977]
[1730741596210,0.55,2427.4,2427.2,4.11995]
[1730741596377,0.55,2427.4,2427.2,4.943957]
[1730741596566,0.55,2427.4,2427.2,4.11995]
[1730741596888,0.55,2427.4,2427.2,8.23983]
[1730741597092,0.55,2427.4,2427.2,4.11988]
[1730741597291,0.55,2427.4,2427.0,4.12018]
[1730741597810,0.55,2427.4,2427.2,4.11988]
[1730741597966,0.55,2427.4,2427.3,4.943792]
[1730741599206,0.0641,2427.7,2427.3,4.943792]
[1730741599508,0.55,2427.6,2427.4,4.11955]
[1730741599937,0.55,2427.6,2427.5,4.11946]
[1730741600235,4.11881,2427.9,2427.6,4.11925]
[1730741600236,0.0641,2427.9,2427.6,4.11925]
[1730741600413,4.1824,2428.2,2427.7,4.11908]
[1730741600612,4.1824,2428.2,2427.8,4.11892]
[1730741601310,0.0641,2428.2,2427.8,4.11881]
[1730741601518,0.0641,2428.2,2427.8,0.411881]
[1730741601702,4.18217,2428.4,2428.0,4.11859]
[1730741601916,4.18214,2428.4,2427.8,4.11879]
[1730741602202,4.18214,2428.4,2427.9,4.1187]
[1730741602715,8.30017,2428.4,2427.9,4.1187]
[1730741602913,8.30017,2428.4,2427.7,4.1191]
[1730741602914,4.11827,2428.3,2427.7,4.1191]
[1730741603112,4.11879,2427.9,2427.5,4.11945]
[1730741603424,4.66896,2427.8,2427.4,4.11962]
[1730741604000,4.11915,2427.7,2427.3,4.11964]
[1730741604197,0.0641,2427.6,2427.3,4.11964]
[1730741605546,0.0641,2427.6,2427.4,4.11962]
[1730741606859,0.0641,2427.6,2427.2,4.91895]
[1730741606860,0.0641,2427.6,2427.3,4.11978]
[1730741607159,0.0641,2427.6,2427.4,4.11954]
[1730741607359,0.0641,2427.6,2427.3,4.11971]
[1730741607562,0.0641,2427.6,2427.4,4.11962]
[1730741608869,0.0641,2427.6,2427.2,4.11996]
[1730741609167,0.0641,2427.6,2427.3,4.11978]
[1730741609168,0.55,2427.5,2427.3,4.11978]
[1730741609729,0.55,2427.5,2427.4,0.26305085]
[1730741610364,0.55,2427.5,2427.3,4.11978]
[1730741610663,0.55,2427.5,2427.4,0.26305266]
[1730741610980,4.11994,2427.3,2426.6,4.92728]
[1730741611186,4.11994,2427.3,2426.7,0.68413261]
[1730741611187,0.6141,2427.0,2426.7,0.68413261]
[1730741611334,4.67048,2426.9,2426.8,0.26312236]
[1730741611646,4.67048,2426.9,2426.5,0.42120497]
[1730741611647,0.55,2426.6,2426.5,0.42120497]
[1730741611845,4.73509,2426.6,2426.5,0.26328176]
[1730741612760,0.6141,2426.6,2426.5,0.26328176]
[1730741613277,0.6141,2426.6,2426.1,4.12177]
[1730741613278,4.73509,2426.6,2426.1,4.12177]
[1730741613455,0.6141,2426.6,2426.2,4.80622661]
[1730741613658,0.6141,2426.6,2426.3,0.26331539]
[1730741613848,0.6141,2426.6,2426.4,0.26331539]
[1730741614174,4.67084,2426.7,2426.5,0.26331539]
[1730741614353,4.12101,2426.6,2426.2,4.12159]
[1730741614553,4.67116,2426.5,2426.3,0.68459799]
[1730741614753,8.79244,2426.5,2426.4,0.26330135]
[1730741614953,4.67116,2426.5,2426.4,0.26330135]
[1730741615367,4.67116,2426.5,2426.0,4.12201]
[1730741615668,0.55,2426.6,2426.3,4.12138]
[1730741615982,0.55,2426.7,2426.4,4.80536149]
[1730741616176,0.55,2426.7,2426.5,0.26318694]
[1730741616399,0.55,2426.7,2426.4,4.12128]
[1730741616681,4.12018,2427.1,2426.6,4.12082]
[1730741616990,4.18407,2427.2,2426.7,4.38379894]
[1730741617144,4.18407,2427.2,2426.8,4.38369894]
[1730741617362,4.18407,2427.2,2426.8,4.12063]
[1730741617649,4.12016,2427.1,2426.7,4.12072]
[1730741617843,4.12016,2427.1,2426.8,0.26328648]
[1730741618063,0.0641,2427.2,2426.7,4.5816639]
[1730741618264,4.18416,2427.2,2426.8,0.26320148]
[1730741618576,0.55,2427.1,2426.9,0.26320148]
[1730741618781,0.55,2427.1,2426.8,4.12064]
[1730741618941,0.55,2427.1,2426.9,0.26332089]
[1730741619282,0.55,2427.1,2426.9,4.12046]
[1730741619641,0.55,2427.1,2426.8,4.99086039]
[1730741619842,0.55,2427.1,2426.9,0.26333163]
[1730741620043,0.55,2427.1,2426.8,4.99086039]
[1730741620243,0.55,2427.1,2426.9,0.26331839]
[1730741620490,0.55,2427.1,2426.8,4.99086039]
[1730741620780,0.55,2427.1,2426.9,0.2632659]
[1730741620983,4.67015,2427.1,2426.7,4.5817439]
[1730741621282,4.67015,2427.1,2426.8,0.26330101]
[1730741621497,0.55,2427.1,2426.7,4.5817439]
[1730741621793,0.55,2427.1,2426.8,5.25413286]
[1730741622075,0.55,2427.1,2426.8,4.99082739]
[1730741622278,0.55,2427.1,2426.9,4.38374889]
[1730741622483,0.55,2427.1,2426.9,4.12046]
[1730741622685,4.11983,2427.3,2426.9,4.12046]
[1730741622686,3.73393,2427.3,2426.9,4.12046]
[1730741622979,4.11981,2427.3,2426.9,5.15615313]
[1730741623295,4.11963,2427.4,2427.0,4.1203]
[1730741623855,4.11963,2427.4,2426.9,5.15619313]
[1730741624181,4.11998,2427.2,2426.7,5.3668139]
[1730741624391,4.11998,2427.2,2426.8,4.38384961]
[1730741624686,4.11998,2427.2,2426.9,0.26325217]
[1730741624890,4.11998,2427.2,2426.8,4.12059]
[1730741625191,4.11998,2427.2,2426.8,4.12064]
[1730741625486,4.66964,2427.4,2427.0,4.12028]
[1730741625692,0.55,2427.4,2427.1,4.12004]
[1730741625997,0.55,2427.4,2427.0,4.12021]
[1730741626350,4.66972,2427.4,2426.9,4.12046]
[1730741626551,4.11982,2427.3,2426.9,4.12046]
[1730741628879,4.12023,2427.1,2426.7,4.12082]
[1730741629083,4.12023,2427.1,2426.8,0.2632264]
[1730741629375,4.12023,2427.1,2426.7,4.12082]
[1730741629560,0.55,2427.1,2426.7,4.12082]
[1730741629800,0.55,2427.1,2426.8,0.26319358]
[1730741629999,4.67017,2427.1,2426.7,4.12082]
[1730741630205,0.55,2427.1,2426.7,4.12082]
[1730741630393,0.55,2427.1,2426.8,4.12063]
[1730741631637,4.11926,2427.7,2426.9,0.90880835]
[1730741631935,0.65522423,2427.9,2427.5,4.11937]
[1730741631936,4.11887,2427.9,2427.5,4.11937]
[1730741632120,4.12887,2427.9,2427.5,4.11937]
[1730741632302,4.12887,2427.9,2426.9,0.8264]
[1730741632632,4.11905,2427.8,2427.4,4.11963]
[1730741632991,0.55,2427.7,2427.4,4.11963]
[1730741633473,4.66912,2427.7,2427.3,4.11971]
[1730741634319,4.66912,2427.7,2427.3,4.943676]
[1730741635027,4.66912,2427.7,2427.2,4.11996]
[1730741635343,4.66953,2427.5,2427.0,4.12018]
[1730741635544,4.66953,2427.5,2427.1,0.26343191]
[1730741635729,4.66953,2427.5,2427.0,4.12018]
[1730741636038,0.55,2427.3,2427.1,0.26344659]
[1730741636247,0.55,2427.3,2427.0,4.12018]
[1730741636544,0.55,2427.4,2427.1,4.38357871]
[1730741636745,0.55,2427.4,2427.1,4.1201]
[1730741637644,4.66971,2427.4,2427.0,4.12028]
[1730741638806,4.66971,2427.4,2427.0,8.24052]
[1730741639002,4.66971,2427.4,2427.0,4.12024]
[1730741639651,0.55,2427.4,2427.1,4.12003]
[1730741640503,0.55,2427.4,2426.9,0.8264]
[1730741640707,4.66971,2427.4,2427.0,4.12029]
[1730741640925,0.55,2427.4,2426.9,4.94681]
[1730741641131,4.66946,2427.5,2427.0,4.12021]
[1730741641330,5.550346,2427.5,2427.0,4.12021]
[1730741641960,5.550346,2427.5,2426.9,4.94681]
[1730741641961,4.66981,2427.3,2426.9,4.94681]
[1730741642119,4.66981,2427.3,2426.9,4.12041]
[1730741642531,4.66981,2427.3,2426.7,0.8114]
[1730741642864,4.12004,2427.2,2426.8,4.38456862]
[1730741643159,5.2248696,2427.3,2426.9,4.12043]
[1730741643852,4.11998,2427.2,2426.8,4.12057]
[1730741644167,4.6698,2427.3,2426.9,4.12046]
[1730741646620,4.66967,2427.4,2426.9,4.12034]
[1730741646857,4.66967,2427.4,2427.0,4.12028]
[1730741647964,0.55,2427.2,2427.0,4.12028]
[1730741648316,0.55,2427.2,2426.9,4.12045]
[1730741649120,0.55,2427.3,2427.0,4.12029]
[1730741650464,4.66981,2427.3,2427.0,4.12022]
[1730741650671,4.66981,2427.3,2426.8,4.12056]
[1730741650848,4.66981,2427.3,2426.9,4.38466802]
[1730741651023,4.66981,2427.3,2426.9,4.12047]
[1730741651829,0.55,2427.3,2427.0,4.12029]
[1730741652027,4.11912,2427.8,2427.3,4.1198]
[1730741652288,4.11912,2427.8,2427.4,4.1196]
[1730741652597,4.11912,2427.8,2427.2,4.11982]
[1730741652598,4.1192,2427.7,2427.2,4.11982]
[1730741652781,4.11954,2427.5,2427.1,0.7649]
[1730741653081,4.11954,2427.5,2426.8,0.42249326]
[1730741653082,7.70441504,2427.5,2426.8,0.42249326]
[1730741653282,4.12021,2427.1,2426.7,4.54330326]
[1730741653489,4.1198,2427.3,2426.1,2.70938829]
[1730741653490,4.67039,2427.0,2426.8,0.26413833]
[1730741653658,4.67039,2427.0,2426.4,4.12123]
[1730741653659,4.12048,2426.9,2426.4,4.12123]
[1730741653861,0.55,2426.8,2426.5,0.26415175]
[1730741654091,0.55,2426.9,2426.6,4.12091]
[1730741654247,0.55,2427.1,2426.7,4.12069]
[1730741654447,0.55,2427.1,2426.8,4.12057]
[1730741655106,4.12008,2427.2,2426.8,4.12056]
[1730741655107,0.55,2427.2,2426.8,4.12056]
[1730741655408,4.12022,2427.1,2426.7,4.9197]
[1730741655633,8.7901,2427.2,2426.8,4.12064]
[1730741655776,4.66983,2427.3,2426.8,4.12064]
[1730741655968,4.11998,2427.2,2426.8,4.12064]
[1730741656314,0.55,2427.1,2426.8,4.12064]
[1730741657426,0.55,2427.1,2426.9,4.12046]
[1730741657709,4.11983,2427.3,2426.8,4.12064]
[1730741657710,0.55,2427.2,2426.8,4.12064]
[1730741657870,0.55,2427.2,2426.8,0.98646]
[1730741658066,9.73427213,2428.1,2427.4,0.7574]
[1730741658314,2.59186252,2428.3,2427.7,4.11904]
[1730741658470,4.1278,2428.5,2427.8,4.1188]
[1730741658669,4.1178,2428.5,2428.0,4.11859]
[1730741658866,6.70939252,2428.7,2428.1,4.11844]
[1730741658867,4.11753,2428.7,2428.1,4.11844]
[1730741659111,4.11762,2428.6,2428.1,4.11844]